bitfinex-derivatives/quotes_ETHF0:USTF0_20241230
["timestamp","ask_amount","ask_price","bid_price","bid_amount"]
[1735577756873,0.8066,3338.9,3338.5,9.64933806]
[1735577757074,0.30008,3338.6,3338.5,9.64933806]
[1735577757872,0.30008,3338.5,3338.4,4.79489]
[1735577758779,0.8066,3338.9,3338.4,1.287]
[1735577759075,0.30008,3338.6,3338.5,0.30008]
[1735577760273,0.8066,3338.9,3338.4,1.287]
[1735577760481,0.30008,3338.5,3338.4,1.58709]
[1735577760776,0.30008,3338.6,3338.5,0.30007]
[1735577760980,4.0144,3338.9,3338.4,1.287]
[1735577761184,1.07968,3338.5,3338.4,1.58709]
[1735577761381,1.07968,3338.5,3338.4,1.287]
[1735577761580,0.3001,3338.3,3338.2,41.10011]
[1735577761777,0.3001,3338.3,3338.2,40.8]
[1735577761981,3.9874,3338.5,3337.9,3.2078]
[1735577761982,7.09296865,3338.5,3337.9,3.2078]
[1735577762182,0.30013,3338.0,3337.9,3.50793]
[1735577762581,0.30013,3338.0,3337.9,3.2078]
[1735577762781,0.30015,3337.8,3337.7,9.34925806]
[1735577763489,0.30016,3337.7,3337.6,41.10016]
[1735577763684,0.30016,3337.7,3337.6,0.30016]
[1735577763881,0.30017,3337.6,3337.5,1.287]
[1735577764483,0.30015,3337.8,3337.7,0.30015]
[1735577764681,0.7796,3337.9,3337.5,1.287]
[1735577764682,0.30017,3337.6,3337.5,1.287]
[1735577765178,0.30018,3337.4,3337.3,40.8]
[1735577765481,0.30018,3337.4,3337.0,8.788]
[1735577765482,0.30021,3337.1,3337.0,1.287]
[1735577765687,0.30022,3337.0,3336.9,9.34925806]
[1735577765879,0.30022,3337.0,3336.9,9.64948806]
[1735577766074,0.7698,3337.2,3336.8,40.8]
[1735577766375,0.7698,3337.2,3337.1,0.30021]
[1735577766577,0.7698,3337.2,3336.8,40.8]
[1735577766884,0.30022,3337.1,3337.0,0.30022]
[1735577767381,0.30024,3336.8,3336.7,0.30024]
[1735577767579,0.30025,3336.7,3336.6,1.58725]
[1735577768584,0.30027,3336.5,3336.4,0.30027]
[1735577769574,0.7885,3336.6,3336.3,40.8]
[1735577769777,0.7885,3336.6,3336.5,0.30026]
[1735577769976,3.9776,3337.2,3336.3,44.0078]
[1735577770182,3.2078,3337.2,3337.1,0.30021]
[1735577770590,3.53297113,3337.4,3337.3,0.30019]
[1735577771187,1.5894,3337.7,3337.3,40.8]
[1735577771383,0.30017,3337.6,3337.5,0.30017]
[1735577771585,0.30017,3337.6,3337.4,0.30018]
[1735577771780,1.5894,3337.7,3337.3,40.8]
[1735577771985,0.30017,3337.6,3337.5,0.30017]
[1735577772585,1.88956,3337.7,3337.6,0.30017]
[1735577772891,0.30017,3337.6,3337.5,0.30017]
[1735577773485,1.5894,3337.7,3337.3,40.8]
[1735577773686,0.30019,3337.4,3337.3,0.30019]
[1735577773885,2.28546865,3337.6,3337.1,3.2078]
[1735577774187,0.3002,3337.3,3337.2,0.3002]
[1735577774784,0.30019,3337.4,3337.3,0.30019]
[1735577774980,10.49326865,3337.6,3336.5,3.2078]
[1735577775188,0.30026,3336.6,3336.5,3.50806]
[1735577776788,1.5828,3336.9,3336.6,0.30025]
[1735577777091,3.50801,3337.2,3337.1,0.30021]
[1735577777287,0.30021,3337.2,3337.1,0.30021]
[1735577778193,1.1364,3337.3,3337.2,0.3002]
[1735577778490,3.9813,3337.6,3337.0,1.288]
[1735577778793,3.9813,3337.6,3337.5,0.30017]
[1735577778994,3.2078,3337.6,3337.5,0.30017]
[1735577779191,1.13636,3337.7,3337.4,3.2078]
[1735577779489,1.13636,3337.7,3337.6,0.30017]
[1735577781796,0.8362,3337.7,3337.0,4.4958]
[1735577782088,0.30021,3337.2,3337.1,1.288]
[1735577782392,0.30024,3336.9,3336.8,0.30023]
[1735577782600,0.30024,3336.8,3336.7,1.288]
[1735577782803,1.07874,3336.8,3336.7,1.58825]
[1735577783086,1.07874,3336.8,3336.7,0.30025]
[1735577784599,0.7785,3336.8,3336.7,0.30025]
[1735577784893,1.07874,3336.8,3336.7,0.30025]
[1735577785589,0.7785,3336.8,3336.7,0.30025]
[1735577786187,0.30023,3337.0,3336.9,0.30022]
[1735577786387,0.8219,3337.1,3336.5,5.24547]
[1735577786594,0.30023,3337.0,3336.9,0.30023]
[1735577787197,1.12212,3337.1,3337.0,0.30022]
[1735577787702,0.30024,3336.8,3336.7,0.30024]
[1735577787996,0.30023,3337.0,3336.9,0.30022]
[1735577788299,0.30021,3337.2,3337.1,0.3002]
[1735577790398,1.128,3337.3,3337.2,0.3002]
[1735577790796,0.3002,3337.3,3337.2,0.3002]
[1735577791688,0.3002,3337.3,3336.9,44.0078]
[1735577791894,0.30022,3337.1,3337.0,0.30021]
[1735577792900,0.30021,3337.2,3337.1,0.3002]
[1735577793100,3.2078,3337.3,3336.9,40.8]
[1735577793298,4.0488,3337.7,3336.9,44.0078]
[1735577793602,4.0488,3337.7,3337.6,0.30017]
[1735577793994,3.2078,3337.7,3337.6,0.30017]
[1735577794298,0.8241,3337.8,3337.4,1.287]
[1735577794496,0.8241,3337.8,3337.7,0.30016]
[1735577795098,1.12425,3337.8,3337.7,0.30016]
[1735577795303,0.30017,3337.6,3337.5,0.30017]
[1735577795805,0.8241,3337.8,3337.4,1.287]
[1735577795995,0.30017,3337.7,3337.6,0.30016]
[1735577797701,1.12425,3337.8,3337.7,0.30016]
[1735577799408,0.8241,3337.8,3337.7,0.30016]
[1735577799601,1.12425,3337.8,3337.7,0.30016]
[1735577800310,0.7994,3338.1,3338.0,0.30013]
[1735577800509,1.09953,3338.1,3338.0,0.30013]
[1735577801011,0.7994,3338.1,3337.5,0.75044]
[1735577801198,1.12793,3338.0,3337.9,0.30014]
[1735577801798,0.8278,3338.0,3337.9,0.30014]
[1735577802606,1.12793,3338.0,3337.9,0.30014]
[1735577803113,0.30015,3337.9,3337.8,0.30014]
[1735577803313,0.8278,3338.0,3337.4,1.287]
[1735577803609,1.12794,3338.0,3337.9,0.30014]
[1735577804711,0.30016,3337.7,3337.6,0.30016]
[1735577804914,0.8514,3337.9,3337.4,1.287]
[1735577805106,1.15154,3337.9,3337.8,0.30015]
[1735577805406,1.12793,3338.0,3337.9,0.30014]
[1735577806411,0.8278,3338.0,3337.9,0.30014]
[1735577807906,0.7994,3338.1,3337.6,0.75041]
[1735577808109,3.53297113,3338.5,3337.8,3.2078]
[1735577808310,3.53297113,3338.5,3338.4,0.30009]
[1735577808613,3.53297113,3338.5,3338.4,1.58709]
[1735577809211,1.97297113,3338.5,3338.4,47.38709]
[1735577809414,1.97297113,3338.9,3338.8,0.30006]
[1735577810117,1.97297113,3338.9,3338.4,42.087]
[1735577810311,0.30006,3338.8,3338.7,0.30006]
[1735577812320,0.7934,3338.9,3338.4,1.287]
[1735577812613,0.7934,3338.9,3338.8,0.30006]
[1735577812614,1.09346,3338.9,3338.8,0.30006]
[1735577813614,0.30008,3338.7,3338.6,0.30007]
[1735577814015,0.7826,3338.8,3338.4,1.287]
[1735577814317,1.09345,3338.9,3338.8,0.30006]
[1735577815014,0.7934,3338.9,3338.8,0.30006]
[1735577815313,3.03061346,3339.5,3338.8,0.30006]
[1735577815314,7.88808593,3339.9,3339.8,0.29997]
[1735577815512,3.2078,3339.9,3339.8,1.58597]
[1735577817011,0.29995,3340.1,3340.0,0.29995]
[1735577818215,1.09144,3340.2,3340.1,0.29994]
[1735577818712,0.7915,3340.2,3339.8,1.286]
[1735577818913,0.7915,3340.2,3340.0,0.29994]
[1735577818914,0.29994,3340.1,3340.0,0.29994]
[1735577819508,0.29994,3340.1,3340.0,0.29995]
[1735577819907,0.29996,3339.9,3339.8,1.286]
[1735577820111,0.7915,3340.2,3339.7,0.29998]
[1735577820112,0.29998,3339.8,3339.7,0.29998]
[1735577820308,5.48841346,3340.0,3339.1,3.2078]
[1735577820514,5.7915,3340.2,3338.9,1.286]
[1735577820515,3.2078,3339.6,3338.9,1.286]
[1735577820817,0.30002,3339.3,3339.2,0.30002]
[1735577821814,0.30004,3339.1,3339.0,0.30003]
[1735577822012,0.30002,3339.3,3339.2,0.30001]
[1735577822310,0.30002,3339.4,3339.3,0.30001]
[1735577822719,0.30002,3339.3,3339.2,0.30002]
[1735577823309,1.6472,3339.5,3338.9,1.286]
[1735577823310,0.30004,3339.1,3339.0,0.30003]
[1735577823710,1.6472,3339.5,3339.1,0.30002]
[1735577823711,0.30003,3339.2,3339.1,0.30002]
[1735577823920,1.6472,3339.5,3338.9,1.286]
[1735577824109,0.30001,3339.4,3339.3,0.3]
[1735577824304,1.6472,3339.5,3338.9,1.286]
[1735577824515,0.30007,3338.8,3338.7,0.30006]
[1735577824715,0.30006,3338.9,3338.8,0.30004]
[1735577825014,0.75004,3339.3,3338.6,4.4938]
[1735577825218,0.30005,3339.0,3338.9,0.30004]
[1735577825711,0.30002,3339.3,3339.2,0.30002]
[1735577826318,0.30002,3339.3,3339.2,0.30001]
[1735577826517,1.6472,3339.5,3339.3,0.3]
[1735577826518,0.30001,3339.4,3339.3,0.3]
[1735577826721,1.9472,3339.5,3339.4,0.3]
[1735577827311,0.30002,3339.3,3339.2,0.30002]
[1735577828321,1.6472,3339.5,3339.0,3.2078]
[1735577828519,1.6472,3339.5,3338.6,3.9835]
[1735577828817,1.6472,3339.5,3338.6,3.50787]
[1735577828818,0.30007,3338.7,3338.6,3.50787]
[1735577829227,2.28061346,3339.1,3338.6,3.50787]
[1735577829228,0.30006,3338.8,3338.7,0.30006]
[1735577829521,0.30007,3338.8,3338.7,0.30006]
[1735577830216,1.11997,3338.8,3338.7,0.30006]
[1735577830523,0.30007,3338.7,3338.6,3.50787]
[1735577831311,0.30007,3338.7,3338.6,0.30007]
[1735577832715,0.30008,3338.5,3338.4,1.286]
[1735577833421,3.2078,3338.6,3338.2,1.286]
[1735577833622,0.3001,3338.3,3338.2,1.286]
[1735577833820,0.3001,3338.3,3338.2,0.30011]
[1735577834624,0.30012,3338.2,3338.1,0.30012]
[1735577834824,0.30012,3338.2,3337.4,8.54189912]
[1735577834825,0.8132,3338.2,3337.4,1.59936]
[1735577835120,0.8132,3338.2,3338.1,0.30012]
[1735577835630,1.11331,3338.2,3338.1,0.30012]
[1735577835820,0.30013,3338.1,3338.0,0.30012]
[1735577836126,1.10933,3338.1,3338.0,0.30012]
[1735577836319,0.8092,3338.1,3337.6,0.8045]
[1735577836524,0.30016,3337.7,3337.6,1.58615]
[1735577836724,0.30016,3337.8,3337.7,0.30015]
[1735577837128,0.8247,3338.0,3337.6,1.286]
[1735577837321,0.30017,3337.6,3337.5,0.30016]
[1735577837718,0.3002,3337.3,3337.2,0.30019]
[1735577837923,0.30019,3337.4,3337.3,0.30018]
[1735577838735,1.94689,3337.4,3337.3,0.30018]
[1735577839134,0.3002,3337.3,3337.2,0.3002]
[1735577840641,0.30022,3337.1,3337.0,0.30021]
[1735577841435,0.8561,3337.2,3336.8,0.30023]
[1735577841640,0.30023,3337.0,3336.9,0.30022]
[1735577842441,0.8561,3337.2,3336.7,1.286]
[1735577842642,0.30023,3337.0,3336.9,0.13722]
[1735577842837,0.30025,3336.7,3336.6,41.10025]
[1735577843540,2.58086346,3336.7,3336.6,0.30026]
[1735577843835,3.2078,3336.9,3336.2,43.83135346]
[1735577844031,3.50803,3336.9,3336.8,0.30024]
[1735577844232,3.2078,3336.9,3336.8,0.30024]
[1735577844429,3.2078,3337.3,3336.8,1.286]
[1735577844835,0.30023,3336.9,3336.8,1.286]
[1735577845041,0.3002,3337.2,3337.1,0.30021]
[1735577845227,5.78861346,3337.3,3336.8,1.286]
[1735577845429,3.508,3337.3,3337.2,0.3002]
[1735577845834,3.2078,3337.3,3337.2,0.3002]
[1735577846434,3.2078,3337.7,3337.6,0.30017]
[1735577846637,0.8355,3337.8,3337.1,6.29521346]
[1735577846840,2.28061346,3337.6,3337.1,4.0146]
[1735577847143,0.30019,3337.3,3337.2,40.8]
[1735577847441,0.3002,3337.2,3337.1,0.30021]
[1735577848640,1.57322,3337.7,3336.8,1.286]
[1735577848641,0.30023,3336.9,3336.8,0.30023]
[1735577849244,0.30022,3337.0,3336.9,0.30022]
[1735577849537,1.6293,3337.1,3337.0,0.30022]
[1735577849738,0.30017,3337.6,3337.5,0.30017]
[1735577849946,0.8602,3337.6,3337.5,0.30017]
[1735577850439,2.34347593,3338.0,3337.9,0.30014]
[1735577851544,0.30014,3337.9,3337.8,0.30014]
[1735577851740,4.0124,3338.3,3337.5,3.2078]
[1735577852039,4.0124,3338.3,3337.9,0.30013]
[1735577852040,0.30013,3338.0,3337.9,0.30013]
[1735577852242,0.8248,3338.2,3337.6,40.8]
[1735577852443,0.30015,3337.9,3337.8,0.30014]
[1735577852643,0.8248,3338.2,3337.6,40.8]
[1735577852944,0.30014,3338.0,3337.9,0.30013]
[1735577853639,0.30015,3337.8,3337.7,0.30015]
[1735577853840,0.8248,3338.2,3337.6,40.8]
[1735577854039,0.30014,3337.9,3337.8,0.30014]
[1735577855131,0.30013,3338.1,3338.0,0.30012]
[1735577855336,0.30013,3338.1,3337.6,42.83641]
[1735577855337,0.30014,3338.0,3337.9,0.30013]
[1735577855533,0.8248,3338.2,3337.6,1.286]
[1735577855731,0.30014,3337.9,3337.8,0.30015]
[1735577856141,0.30014,3338.0,3337.9,0.30013]
[1735577856943,3.10541346,3338.2,3337.6,1.286]
[1735577857132,0.30014,3337.9,3337.8,0.30014]
[1735577857837,0.30013,3338.0,3337.9,0.30013]
[1735577858238,4.0124,3338.3,3337.6,1.286]
[1735577858444,4.3125,3338.3,3338.2,0.30011]
[1735577858744,4.0124,3338.3,3338.2,0.30011]
[1735577858939,3.2078,3338.3,3338.2,0.30011]
[1735577859346,4.37857,3338.7,3337.9,4.0153]
[1735577859540,4.0785,3338.7,3338.6,0.30008]
[1735577859747,4.37857,3338.7,3338.6,0.30008]
[1735577860647,0.30009,3338.5,3338.0,3.03094346]
[1735577860844,0.30009,3338.5,3338.4,0.30009]
[1735577864343,0.30008,3338.6,3338.5,0.30008]
[1735577866441,3.2078,3338.7,3338.6,0.30008]
[1735577866646,3.2078,3338.7,3338.6,1.11198]
[1735577869545,3.50787,3338.7,3338.6,1.11198]
[1735577869749,0.30008,3338.6,3338.5,1.58608]
[1735577870140,1.15708,3338.6,3338.5,1.58608]
[1735577870348,1.15708,3338.6,3338.5,1.286]
[1735577870649,0.30009,3338.5,3338.4,0.30008]
[1735577871547,0.857,3338.6,3338.5,0.30008]
[1735577871548,1.15708,3338.6,3338.5,0.30008]
[1735577872049,0.30009,3338.5,3338.4,0.30008]
[1735577872245,0.30011,3338.3,3338.2,0.3001]
[1735577872443,2.28061346,3338.5,3337.9,4.0598]
[1735577872642,0.8222,3338.2,3337.7,1.286]
[1735577872951,0.30014,3338.0,3337.9,0.30013]
[1735577873453,1.12232,3338.2,3338.1,0.30012]
[1735577874649,0.881,3338.5,3337.8,2.03537]
[1735577874847,0.8551,3338.5,3337.9,5.48841346]
[1735577875047,0.8551,3338.5,3338.4,0.30009]
[1735577875248,2.34347593,3338.7,3338.2,2.28061346]
[1735577875446,3.50786,3338.8,3338.3,0.8014]
[1735577875648,3.50786,3338.8,3338.7,0.30007]
[1735577877546,0.30007,3338.7,3338.6,1.58507]
[1735577878547,3.2078,3338.8,3338.7,0.30007]
[1735577878548,3.50786,3338.8,3338.7,0.30007]
[1735577880249,3.2078,3338.8,3338.7,0.30007]
[1735577880447,3.50786,3338.8,3338.7,0.30007]
[1735577882245,0.30007,3338.7,3338.6,1.58507]
[1735577885949,3.50786,3338.8,3338.7,0.30007]
[1735577886154,3.2078,3338.8,3338.7,0.30007]
[1735577886453,0.30005,3338.9,3338.6,1.285]
[1735577886454,0.8551,3339.0,3338.9,0.30005]
[1735577886655,1.15514,3339.0,3338.9,0.30005]
[1735577886856,0.8551,3339.0,3338.7,0.8347]
[1735577887055,0.8551,3339.0,3338.6,1.285]
[1735577887259,0.30007,3338.8,3338.7,0.30006]
[1735577887557,0.30006,3338.9,3338.8,0.30005]
[1735577888164,0.30007,3338.8,3338.7,0.30006]
[1735577889257,0.8344,3339.1,3339.0,0.30004]
[1735577890359,1.13443,3339.1,3339.0,0.30004]
[1735577890758,0.30005,3339.0,3338.9,0.30004]
[1735577891758,0.30005,3338.9,3338.8,3.2078]
[1735577891955,0.30005,3338.9,3338.8,3.50786]
[1735577892165,0.30007,3338.8,3338.7,0.30006]
[1735577892362,3.03076346,3338.8,3338.4,4.66192566]
[1735577892554,2.58069346,3338.5,3338.4,4.66192566]
[1735577892861,3.50788,3338.5,3338.4,4.66192566]
[1735577893061,0.3001,3338.3,3338.2,4.96202566]
[1735577893264,0.3001,3338.3,3338.2,4.66192566]
[1735577893462,0.3001,3338.3,3338.2,4.96203566]
[1735577893763,0.3001,3338.3,3338.2,4.66192566]
[1735577894361,0.30011,3338.3,3338.2,0.3001]
[1735577894763,3.16677593,3338.4,3337.7,1.285]
[1735577894962,3.46687593,3338.4,3338.3,0.3001]
[1735577895165,3.16677593,3338.4,3338.3,0.3001]
[1735577895461,2.34347593,3338.4,3338.3,0.3001]
[1735577896067,6.73073895,3338.5,3338.0,2.45792]
[1735577896267,6.73073895,3338.5,3338.4,0.30009]
[1735577897162,3.52293895,3338.5,3338.4,0.30009]
[1735577897462,2.35698673,3338.6,3338.5,0.30008]
[1735577897667,2.35698673,3338.6,3338.5,44.66569346]
[1735577898369,2.35698673,3339.1,3338.5,49.02753912]
[1735577898570,2.35698673,3339.1,3339.0,0.30004]
[1735577899671,2.65701673,3339.1,3339.0,0.30004]
[1735577900670,2.35698673,3339.2,3338.7,7.86972566]
[1735577900976,0.30004,3339.0,3338.9,0.30003]
[1735577901265,2.35698673,3339.2,3338.7,7.86972566]
[1735577901467,2.65700673,3339.2,3339.1,0.30003]
[1735577901767,2.65700673,3339.2,3338.7,7.86972566]
[1735577901768,0.30006,3338.8,3338.7,8.16978566]
[1735577902372,0.30006,3338.9,3338.8,0.30005]
[1735577903374,0.30006,3338.8,3338.7,4.66192566]
[1735577903576,0.30008,3338.6,3338.5,4.66192566]
[1735577904777,0.30008,3338.5,3338.4,1.285]
[1735577905073,0.30008,3338.5,3338.1,3.50792]
[1735577905074,0.30011,3338.2,3338.1,3.2078]
[1735577905380,0.30012,3338.1,3338.0,4.66192566]
[1735577905677,2.95662,3338.1,3338.0,4.66192566]
[1735577906570,0.30015,3337.8,3337.7,4.66192566]
[1735577906976,0.30015,3337.8,3337.7,4.96208566]
[1735577907578,7.63610537,3338.1,3338.0,0.30013]
[1735577907875,0.30014,3338.0,3337.9,0.30013]
[1735577908076,0.30015,3337.8,3337.7,0.30015]
[1735577912782,7.33476765,3338.1,3337.5,2.03543]
[1735577913273,4.12696765,3338.1,3337.5,2.03543]
[1735577913480,0.30015,3337.9,3337.8,0.30014]
[1735577914875,0.30014,3338.0,3337.9,0.30013]
[1735577915280,0.30015,3337.9,3337.8,0.30014]
[1735577915580,2.35746765,3338.2,3337.5,42.085]
[1735577915775,0.30013,3338.1,3338.0,0.30012]
[1735577916679,2.35746765,3338.2,3338.1,0.30012]
[1735577916680,2.65757765,3338.2,3338.1,0.30012]
[1735577916876,2.35746765,3338.2,3338.1,0.30012]
[1735577917485,2.35746765,3338.2,3338.1,3.50792]
[1735577917780,2.35746765,3338.6,3338.5,0.30008]
[1735577918481,2.65754765,3338.6,3338.5,0.30008]
[1735577918883,0.30008,3338.6,3338.5,0.30008]
[1735577921580,0.8379,3338.7,3338.3,0.30009]
[1735577921581,0.3001,3338.4,3338.3,0.30009]
[1735577924684,2.35746765,3338.6,3337.8,5.41230566]
[1735577924892,0.30013,3338.1,3338.0,0.30011]
[1735577927794,0.8155,3338.3,3338.2,0.30011]
[1735577927993,2.35746765,3338.4,3338.3,0.3001]
[1735577928387,2.35746765,3338.4,3338.3,1.1842]
[1735577929288,3.50788,3338.6,3338.3,0.8841]
[1735577929587,3.50788,3338.6,3338.5,0.30008]
[1735577930682,0.3001,3338.5,3338.4,0.30008]
[1735577930893,0.30011,3338.3,3338.2,0.3001]
[1735577931097,3.2078,3338.6,3338.1,7.86972566]
[1735577931391,3.50788,3338.6,3338.5,0.30008]
[1735577933185,0.30008,3338.6,3338.5,0.30008]
[1735577937387,0.30009,3338.5,3338.3,1.284]
[1735577937594,0.30009,3338.4,3338.3,1.58409]
[1735577940992,0.30009,3338.4,3338.3,1.284]
[1735577943199,0.30012,3338.2,3338.1,1.58411]
[1735577945898,0.8561,3338.3,3338.1,1.58411]
[1735577945899,5.56526765,3338.6,3338.1,1.284]
[1735577946205,5.56526765,3338.6,3338.5,0.30008]
[1735577946206,2.35746765,3338.6,3338.5,0.30008]
[1735577946601,2.35746765,3338.6,3338.5,41.10008]
[1735577946803,2.35746765,3338.6,3338.5,44.30788]
[1735577947917,0.8852,3338.9,3338.8,0.30006]
[1735577948714,0.30008,3338.7,3338.6,0.30008]
[1735577948912,0.30008,3338.6,3338.5,17.35005887]
[1735577949116,0.30008,3338.6,3338.5,11.78475849]
[1735577950011,0.8632,3338.8,3338.7,0.30007]
[1735577950601,2.35746765,3339.0,3338.9,0.30005]
[1735577951105,2.65750765,3339.0,3338.9,0.30005]
[1735577952014,0.30004,3339.0,3338.9,0.30005]
[1735577953713,0.30007,3338.8,3338.7,0.30006]
[1735577956118,2.35746765,3338.9,3338.5,4.4918]
[1735577956417,2.35746765,3338.9,3338.8,0.30006]
[1735577956917,2.35746765,3338.9,3338.8,41.10006]
[1735577957721,2.35746765,3338.9,3338.6,1.284]
[1735577957722,5.86530765,3339.1,3339.0,0.30004]
[1735577960617,5.56526765,3339.1,3339.0,0.30004]
[1735577961516,3.2078,3339.1,3339.0,0.30004]
[1735577962817,3.2078,3339.1,3338.8,6.39040626]
[1735577962818,0.30005,3339.0,3338.9,0.30004]
[1735577963020,0.30005,3339.0,3338.9,4.98864626]
[1735577964117,0.30005,3339.0,3338.9,0.30004]
[1735577966220,3.2078,3339.1,3338.8,4.68860626]
[1735577966425,3.2078,3339.1,3339.0,0.30004]
[1735577971021,3.2078,3339.1,3339.0,4.98864626]
[1735577976619,3.50783,3339.1,3339.0,4.98864626]
[1735577976825,3.2078,3339.1,3339.0,4.98864626]
[1735577977614,3.2078,3339.1,3339.0,0.30004]
[1735577978520,3.50783,3339.1,3339.0,1.58304]
[1735577980229,5.86529765,3339.1,3339.0,1.58304]
[1735577980423,6.62295546,3339.6,3339.0,1.58304]
[1735577980424,8.52205565,3340.7,3340.4,0.29991]
[1735577980625,8.52205565,3340.7,3340.4,3.50771]
[1735577980626,8.22216565,3340.7,3340.4,3.50771]
[1735577980824,1.7415,3340.6,3340.4,3.50771]
[1735577981720,1.7415,3340.6,3340.4,3.97647826]
[1735577982033,1.7415,3340.6,3340.1,4.98854626]
[1735577982034,4.9493,3340.6,3340.1,4.98854626]
[1735577982428,4.9493,3340.6,3340.1,4.68860626]
[1735577982724,0.29993,3340.3,3340.2,0.29993]
[1735577983127,4.9493,3340.6,3339.7,8.25221972]
[1735577983426,0.29991,3340.5,3339.9,1.04987]
[1735577983720,0.29991,3340.4,3340.3,0.29992]
[1735577984322,4.9493,3340.6,3340.0,2.28061346]
[1735577984527,3.50774,3340.2,3340.1,0.29994]
[1735577984723,3.2078,3340.2,3339.7,3.56361346]
[1735577984927,3.2078,3340.2,3339.8,0.29996]
[1735577984928,0.29997,3339.9,3339.8,0.29996]
[1735577985122,0.29996,3340.0,3339.9,0.29995]
[1735577985533,0.8334,3340.1,3339.5,4.68860626]
[1735577985730,0.8334,3340.1,3339.4,3.56261346]
[1735577985731,0.29998,3339.8,3339.7,0.29997]
[1735577987032,0.29998,3339.7,3339.4,3.56261346]
[1735577987229,3.2078,3339.8,3339.2,0.30001]
[1735577987230,0.30002,3339.3,3339.2,0.30001]
[1735577987434,8.2078,3339.8,3339.3,0.30001]
[1735577987435,3.50781,3339.4,3339.3,0.30001]
[1735577988138,3.2078,3339.4,3339.3,0.30001]
[1735577988634,0.8222,3339.4,3339.3,0.30001]
[1735577990334,0.29999,3339.6,3339.5,0.3]
[1735577990836,0.8222,3339.7,3339.6,0.29999]
[1735577992035,3.2078,3339.8,3339.4,2.28061346]
[1735577992239,3.2078,3339.8,3339.7,2.58059346]
[1735577992540,3.2078,3339.8,3339.7,44.66259346]
[1735577993335,0.866,3340.4,3339.7,3.56261346]
[1735577993536,0.866,3340.4,3340.3,0.29992]
[1735577994241,0.866,3340.4,3340.3,2.58053346]
[1735577994540,3.2078,3340.5,3340.4,0.29991]
[1735577994927,0.8795,3341.0,3340.3,5.48841346]
[1735577995133,0.8795,3341.0,3340.9,2.58048346]
[1735577996232,0.29984,3341.3,3340.9,2.28061346]
[1735577996440,0.29984,3341.3,3341.2,2.58045346]
[1735577996642,1.15554,3341.3,3341.2,2.58045346]
[1735577998242,1.15554,3341.3,3341.2,0.29984]
[1735577999237,0.8557,3341.3,3340.9,2.28061346]
[1735577999443,0.29985,3341.2,3341.1,0.29984]
[1735577999940,0.29986,3341.1,3341.0,0.29985]
[1735578000342,0.29988,3340.9,3340.8,0.29987]
[1735578000534,0.8681,3341.0,3340.7,1.281]
[1735578000934,4.0759,3341.0,3340.7,1.281]
[1735578001341,4.0759,3341.0,3340.3,3.56161346]
[1735578001533,0.2999,3340.6,3340.5,0.2999]
[1735578001738,0.29987,3340.9,3340.8,0.29987]
[1735578001943,4.0759,3341.0,3340.9,0.29987]
[1735578002332,4.0759,3341.0,3340.5,2.28061346]
[1735578002535,0.29989,3340.8,3340.7,0.29988]
[1735578003436,4.0759,3341.0,3340.5,2.28061346]
[1735578003636,4.0759,3341.0,3340.4,1.281]
[1735578003837,0.29988,3340.8,3340.7,0.29988]
[1735578004933,0.2999,3340.7,3340.6,0.29989]
[1735578005134,0.74968,3340.9,3340.2,2.28061346]
[1735578005335,0.74968,3340.9,3340.4,1.281]
[1735578005336,0.29991,3340.5,3340.4,1.281]
[1735578005537,0.29991,3340.5,3340.4,1.58091]
[1735578005937,0.29991,3340.5,3340.4,0.29991]
[1735578006246,1.19231,3340.5,3340.4,0.29991]
[1735578006941,0.29992,3340.3,3340.2,3.86154346]
[1735578007142,0.29992,3340.3,3340.2,2.58054346]
[1735578007539,1.16462,3340.4,3340.3,0.29992]
[1735578008046,0.8924,3340.5,3340.4,0.29991]
[1735578008546,1.19231,3340.5,3340.4,0.29991]
[1735578009141,1.19231,3340.5,3340.4,0.29800291]
[1735578009339,4.0262,3340.6,3340.2,2.28061346]
[1735578009340,4.0262,3340.6,3340.5,0.29991]
[1735578009644,4.3261,3340.6,3340.5,2.58052346]
[1735578010245,4.0262,3340.6,3340.5,2.58052346]
[1735578010442,3.2078,3340.6,3340.5,2.58052346]
[1735578010646,3.2078,3341.1,3341.0,0.29986]
[1735578010839,3.2078,3341.1,3341.0,2.58047346]
[1735578011441,3.50765,3341.1,3341.0,2.58047346]
[1735578011646,3.2078,3341.1,3341.0,2.58047346]
[1735578012145,3.2078,3341.1,3341.0,0.29986]
[1735578014346,3.2078,3341.1,3340.8,2.1602]
[1735578014553,0.29987,3340.9,3340.8,2.46007]
[1735578014749,1.6686,3341.0,3340.3,5.96313432]
[1735578015049,0.29991,3340.4,3340.3,4.68213432]
[1735578015248,0.29991,3340.4,3340.3,3.36793432]
[1735578015547,1.17381,3340.4,3340.3,3.36793432]
[1735578016244,0.2999,3340.7,3340.6,0.29989]
[1735578016750,0.29989,3340.8,3340.7,0.29988]
[1735578017453,0.29988,3340.9,3340.8,0.29987]
[1735578017748,1.6686,3341.0,3340.5,3.2078]
[1735578017948,3.50766,3341.1,3341.0,0.29986]
[1735578018343,3.50765,3341.1,3341.0,0.29986]
[1735578019655,3.2078,3341.1,3341.0,0.29986]
[1735578020352,3.2078,3341.1,3341.0,1.58086]
[1735578020553,0.8002,3341.2,3341.1,0.29985]
[1735578021247,4.0238,3341.6,3341.5,0.29982]
[1735578021653,3.2078,3341.6,3341.5,0.29982]
[1735578021854,3.50761,3341.6,3341.5,0.29982]